bitfinex/quotes_BTCUSD_20240101
["timestamp","ask_amount","ask_price","bid_price","bid_amount"]
[1704143798585,0.0266,43801.0,43800.0,2.66495295]
[1704143798812,0.0266,43801.0,43800.0,3.93171606]
[1704143799052,0.0266,43801.0,43800.0,3.95471606]
[1704143799269,0.0266,43801.0,43800.0,4.01171606]
[1704143800192,0.0266,43801.0,43800.0,3.28112406]
[1704143800404,0.0266,43801.0,43800.0,3.64642006]
[1704143800831,0.0266,43801.0,43800.0,4.01171606]
[1704143801283,0.0266,43801.0,43800.0,3.95471606]
[1704143801690,0.0266,43801.0,43800.0,4.00529606]
[1704143801985,0.0266,43801.0,43800.0,3.95471606]
[1704143803283,0.0266,43801.0,43800.0,4.00523606]
[1704143803691,0.19116544,43809.0,43804.0,0.1]
[1704143803908,0.19116544,43809.0,43805.0,2.03400695]
[1704143804129,0.0265,43810.0,43807.0,0.36523]
[1704143804354,0.0265,43810.0,43808.0,1.64575695]
[1704143804570,0.0265,43810.0,43809.0,1.99565695]
[1704143806264,0.0265,43810.0,43809.0,2.38387795]
[1704143806690,0.0265,43810.0,43809.0,2.38887795]
[1704143807844,0.0275,43810.0,43809.0,2.39087795]
[1704143808057,0.0275,43810.0,43809.0,2.39887795]
[1704143808276,0.0275,43810.0,43809.0,2.39187795]
[1704143808481,0.0285,43810.0,43809.0,2.70187795]
[1704143809546,0.0285,43810.0,43809.0,2.70134995]
[1704143811206,0.0285,43810.0,43809.0,2.80134995]
[1704143812653,0.0285,43810.0,43809.0,2.43612895]
[1704143812847,0.0285,43810.0,43809.0,3.03456706]
[1704143816067,0.0285,43810.0,43809.0,2.66934606]
[1704143816976,0.0285,43810.0,43809.0,3.03456706]
[1704143817182,0.0285,43810.0,43809.0,3.08550706]
[1704143818636,0.0285,43810.0,43809.0,3.25375706]
[1704143818842,0.0285,43810.0,43809.0,3.61897806]
[1704143819263,0.0285,43810.0,43809.0,3.64465806]
[1704143820742,0.0285,43810.0,43809.0,4.00987906]
[1704143821161,0.0285,43810.0,43809.0,4.09753906]
[1704143821371,0.0285,43810.0,43809.0,5.33882664]
[1704143822628,0.0285,43810.0,43809.0,3.36293142]
[1704143822831,0.0285,43810.0,43809.0,4.34892046]
[1704143823244,0.03559091,43813.0,43812.0,0.66825]
[1704143823446,0.03559091,43818.0,43817.0,0.66825]
[1704143823660,0.03559091,43818.0,43817.0,2.58952056]
[1704143823884,0.03559091,43818.0,43817.0,2.65780056]
[1704143824092,0.03559091,43818.0,43817.0,2.68080056]
[1704143824511,0.03559091,43818.0,43817.0,3.66726374]
[1704143824705,0.03659091,43818.0,43817.0,4.03316374]
[1704143824905,0.03659091,43818.0,43817.0,4.09682566]
[1704143825306,0.21929091,43823.0,43822.0,0.66825]
[1704143825307,0.00909091,43823.0,43822.0,0.66825]
[1704143825505,0.00909091,43823.0,43822.0,3.59889974]
[1704143825660,0.00909091,43823.0,43822.0,3.80617857]
[1704143826682,0.00909091,43823.0,43822.0,4.15607857]
[1704143826887,0.00909091,43823.0,43822.0,4.09876166]
[1704143827291,0.01009091,43823.0,43822.0,4.10776166]
[1704143827926,0.01009091,43823.0,43822.0,4.03909974]
[1704143828272,0.01009091,43823.0,43822.0,3.65376674]
[1704143828475,0.01109091,43823.0,43822.0,3.66376674]
[1704143830639,0.01109091,43823.0,43822.0,3.47251674]
[1704143830848,0.01109091,43823.0,43822.0,3.60765386]
[1704143831065,0.01109091,43823.0,43822.0,2.62119068]
[1704143831292,0.01109091,43823.0,43822.0,3.43940386]
[1704143831497,0.01109091,43823.0,43822.0,2.45294068]
[1704143831703,0.01109091,43823.0,43822.0,3.60765386]
[1704143831909,0.01109091,43823.0,43822.0,1.02664345]
[1704143832580,0.04284091,43823.0,43822.0,1.02664345]
[1704143832802,0.05284091,43823.0,43822.0,0.67674345]
[1704143833245,0.05284091,43823.0,43822.0,0.019]
[1704143833458,0.05184091,43823.0,43822.0,0.009]
[1704143833673,0.05184091,43823.0,43816.0,0.3499]
[1704143833674,0.03175,43820.0,43816.0,0.3499]
[1704143833908,0.03175,43820.0,43817.0,0.65773718]
[1704143834115,0.03175,43820.0,43818.0,0.65773718]
[1704143834333,0.03175,43820.0,43816.0,0.3499]
[1704143834334,0.03175,43820.0,43819.0,0.65773718]
[1704143834753,0.03175,43820.0,43816.0,0.3499]
[1704143834754,0.03175,43818.0,43816.0,0.3499]
[1704143834963,0.03175,43817.0,43816.0,0.3499]
[1704143835610,0.03175,43817.0,43814.0,0.3499]
[1704143835822,0.25975,43816.0,43815.0,0.65780759]
[1704143836856,0.25975,43816.0,43814.0,0.3499]
[1704143836857,0.03175,43815.0,43814.0,0.3499]
[1704143837111,0.228,43816.0,43814.0,0.6499]
[1704143837324,0.228,43816.0,43814.0,0.3499]
[1704143837535,0.228,43816.0,43815.0,0.3729]
[1704143837833,0.228,43816.0,43815.0,0.4275]
[1704143838052,0.228,43816.0,43815.0,1.041071]
[1704143838291,0.228,43816.0,43815.0,1.038071]
[1704143838996,0.228,43816.0,43815.0,1.083551]
[1704143839246,0.228,43816.0,43815.0,1.038071]
[1704143839506,0.228,43816.0,43815.0,1.083551]
[1704143839722,0.228,43816.0,43815.0,1.038071]
[1704143839723,0.229,43816.0,43815.0,1.038071]
[1704143840130,0.229,43816.0,43815.0,1.047071]
[1704143840600,0.23,43816.0,43815.0,1.057071]
[1704143840830,0.23,43816.0,43815.0,0.6919]
[1704143841043,0.229,43816.0,43815.0,0.6589]
[1704143841257,0.26175,43816.0,43815.0,0.6689]
[1704143841472,0.26075,43816.0,43815.0,0.6599]
[1704143841697,0.26175,43816.0,43815.0,0.319]
[1704143841898,0.26175,43816.0,43815.0,0.019]
[1704143842520,0.26075,43816.0,43815.0,0.009]
[1704143842731,0.27075,43816.0,43815.0,0.009]
[1704143842932,0.27175,43816.0,43815.0,0.019]
[1704143843558,0.01,43814.0,43813.0,0.3499]
[1704143843768,0.01,43813.0,43808.0,0.3499]
[1704143844708,0.01,43813.0,43812.0,0.3499]
[1704143845097,0.011,43813.0,43812.0,0.3499]
[1704143845305,0.04175,43813.0,43812.0,0.3499]
[1704143845533,0.04275,43813.0,43812.0,0.3499]
[1704143846365,0.03275,43813.0,43812.0,0.3499]
[1704143846590,0.001,43813.0,43812.0,0.3539]
[1704143846843,0.10307838,43821.0,43812.0,0.369196]
[1704143846844,0.01,43817.0,43812.0,0.369196]
[1704143847076,0.01,43817.0,43812.0,0.368196]
[1704143847314,0.01,43816.0,43812.0,0.365196]
[1704143847558,0.01,43817.0,43812.0,0.371196]
[1704143847790,0.01,43817.0,43812.0,0.726096]
[1704143848020,0.01,43817.0,43812.0,0.715096]
[1704143848251,0.012,43817.0,43812.0,0.738096]
[1704143848478,0.002,43817.0,43812.0,0.786456]
[1704143848685,0.01,43816.0,43812.0,0.738096]
[1704143848891,0.012,43817.0,43813.0,0.04632]
[1704143849020,0.012,43817.0,43812.0,0.738096]
[1704143849021,0.01,43816.0,43812.0,0.738096]
[1704143849221,0.01,43815.0,43812.0,0.738096]
[1704143849663,0.01,43815.0,43812.0,0.377196]
[1704143849867,0.01,43814.0,43812.0,0.365196]
[1704143850076,0.01,43814.0,43812.0,0.388196]
[1704143850425,0.01,43814.0,43812.0,0.377196]
[1704143850625,0.01,43814.0,43813.0,0.3499]
[1704143851185,0.011,43814.0,43813.0,0.3499]
[1704143851593,0.01,43814.0,43813.0,0.3499]
[1704143851791,0.012,43814.0,43813.0,0.3589]
[1704143852805,0.011,43814.0,43813.0,0.3589]
[1704143853443,0.001,43814.0,43813.0,0.3589]
[1704143853641,0.001,43814.0,43813.0,0.3689]
[1704143853819,0.002,43814.0,43813.0,0.3689]
[1704143854200,0.012,43814.0,43813.0,0.3689]
[1704143855761,0.012,43814.0,43813.0,0.019]
[1704143857178,0.012,43814.0,43813.0,0.042]
[1704143857560,0.002,43814.0,43813.0,0.042]
[1704143857732,0.002,43814.0,43813.0,0.3919]
[1704143858069,0.012,43814.0,43813.0,0.3919]
[1704143858532,0.002,43814.0,43813.0,0.3919]
[1704143859593,0.012,43814.0,43813.0,0.3919]
[1704143862516,0.002,43814.0,43813.0,0.3919]
[1704143862736,0.15029427,43814.0,43813.0,0.042]
[1704143862940,0.15029427,43814.0,43813.0,0.019]
[1704143863144,0.18204427,43814.0,43813.0,0.019]
[1704143863805,0.03175,43814.0,43813.0,0.019]
[1704143867344,0.64378895,43814.0,43813.0,0.019]
[1704143867546,1.07250895,43814.0,43813.0,0.019]
[1704143867794,1.46274171,43814.0,43813.0,0.019]
[1704143868002,1.62563685,43814.0,43813.0,0.01]
[1704143868221,1.32486229,43814.0,43813.0,0.01]
[1704143868466,1.32586229,43814.0,43813.0,0.019]
[1704143868884,1.32589831,43814.0,43813.0,0.019]
[1704143869097,1.32650782,43814.0,43813.0,0.019]
[1704143869301,1.46294513,43814.0,43813.0,0.009]
[1704143869508,0.03175,43805.0,43802.0,0.05]
[1704143869733,0.03175,43803.0,43802.0,0.05]
[1704143869946,0.03175,43803.0,43802.0,0.3999]
[1704143870121,0.03175,43803.0,43802.0,0.3499]
[1704143871156,0.03175,43803.0,43802.0,0.3549]
[1704143871730,0.03175,43803.0,43802.0,0.005]
[1704143872160,0.03175,43803.0,43800.0,0.3499]
[1704143872372,0.03175,43801.0,43800.0,0.3499]
[1704143872777,0.03175,43801.0,43798.0,0.3]
[1704143872991,0.03175,43799.0,43795.0,0.3]
[1704143873167,0.03175,43799.0,43796.0,0.023]
[1704143873702,0.34482061,43806.0,43800.0,0.006]
[1704143873920,0.03275,43803.0,43802.0,0.003]
[1704143874135,0.03175,43803.0,43798.0,0.665313]
[1704143874343,0.03175,43803.0,43799.0,0.023]
[1704143874793,0.03175,43803.0,43800.0,0.3499]
[1704143875002,0.03175,43803.0,43802.0,0.002]
[1704143875565,0.03175,43804.0,43802.0,0.3519]
[1704143876181,0.2127,43806.0,43802.0,0.3549]
[1704143876182,0.03175,43805.0,43802.0,0.3549]
[1704143876383,0.24445,43806.0,43802.0,0.3549]
[1704143876565,0.24445,43806.0,43803.0,0.3499]
[1704143876768,0.03175,43804.0,43803.0,0.3499]
[1704143876976,0.03175,43805.0,43803.0,0.3499]
[1704143877207,0.03175,43804.0,43803.0,0.3499]
[1704143878670,0.03175,43804.0,43803.0,0.002]
[1704143879103,0.03175,43804.0,43799.0,0.388303]
[1704143879508,0.03175,43804.0,43803.0,0.002]
[1704143879714,0.03175,43804.0,43803.0,0.3519]
[1704143879934,0.03175,43804.0,43803.0,0.3499]
[1704143880334,0.03275,43804.0,43803.0,0.3499]
[1704143880617,0.03275,43804.0,43799.0,0.396303]
[1704143881260,0.03275,43804.0,43799.0,0.008]
[1704143881261,0.03175,43800.0,43799.0,0.008]
[1704143881483,0.03175,43800.0,43798.0,0.3]
[1704143881672,0.03175,43799.0,43798.0,0.3]
[1704143881860,0.03175,43799.0,43796.0,0.3]
[1704143882730,0.03175,43799.0,43798.0,0.009]
[1704143882973,0.001,43800.0,43798.0,0.009]
[1704143882974,0.001,43800.0,43798.0,0.309]
[1704143883630,0.001,43800.0,43799.0,0.023]
[1704143883833,0.002,43800.0,43799.0,0.3729]
[1704143884462,0.001,43800.0,43799.0,0.3729]
[1704143884815,0.002,43800.0,43799.0,0.3789]
[1704143885256,0.001,43800.0,43799.0,0.3789]
[1704143885602,0.002,43800.0,43799.0,0.3869]
[1704143886412,0.002,43800.0,43799.0,0.38662465]
[1704143886630,0.002,43800.0,43799.0,0.3639]
[1704143887267,0.61194507,43809.0,43802.0,0.1]
[1704143887268,0.35929507,43809.0,43802.0,0.1]
[1704143887500,0.08186119,43811.0,43806.0,0.1]
[1704143887501,0.05457412,43811.0,43806.0,0.1]
[1704143887712,0.23321711,43811.0,43806.0,0.1]
[1704143888553,0.16547561,43808.0,43803.0,0.1]
[1704143888770,0.16547561,43808.0,43803.0,0.4499]
[1704143888771,0.39869272,43808.0,43803.0,0.4499]
[1704143888956,0.39869272,43808.0,43806.0,0.001]
[1704143889784,0.39869272,43808.0,43806.0,0.002]
[1704143890006,0.590514,43810.0,43806.0,0.002]
[1704143890217,0.2253,43810.0,43806.0,0.101]
[1704143890454,0.007,43808.0,43806.0,0.102]
[1704143890879,0.2253,43810.0,43806.0,0.101]
[1704143891124,0.2353,43810.0,43806.0,0.101]
[1704143891328,0.005,43808.0,43806.0,0.1]
[1704143891744,0.007,43808.0,43806.0,0.101]
[1704143891943,0.2253,43810.0,43806.0,0.1]
[1704143892151,0.2333,43810.0,43806.0,0.101]
[1704143892560,0.2253,43810.0,43806.0,0.1]
[1704143892999,0.005,43808.0,43806.0,0.1]
[1704143893415,0.005,43808.0,43806.0,0.101]
[1704143894048,0.3934719,43810.0,43806.0,0.1]
[1704143894256,0.4014719,43810.0,43806.0,0.101]
[1704143894472,0.007,43808.0,43806.0,0.102]
[1704143894892,0.007,43808.0,43806.0,0.101]
[1704143895133,0.005,43808.0,43806.0,0.1]
[1704143896378,0.005,43808.0,43806.0,0.101]
[1704143896594,0.005,43808.0,43806.0,0.1]
[1704143897037,0.012,43808.0,43806.0,0.101]
[1704143898122,0.0441,43807.0,43806.0,0.001]
[1704143898320,0.23321711,43807.0,43806.0,0.001]
[1704143899334,0.23321711,43807.0,43798.0,0.4859]
[1704143899580,0.23321711,43807.0,43799.0,0.65797613]
[1704143899581,0.194,43806.0,43799.0,0.65797613]
[1704143899783,0.194,43806.0,43800.0,0.65797613]
[1704143899784,0.365276,43803.0,43800.0,0.65797613]
[1704143899987,0.365281,43802.0,43801.0,0.65802849]
[1704143900221,0.365281,43802.0,43798.0,0.1]
[1704143900537,0.23321711,43803.0,43799.0,0.6580462]
[1704143900736,0.23321711,43803.0,43799.0,0.3499]
[1704143901023,0.23321711,43803.0,43799.0,0.3569]
[1704143901228,0.23321711,43803.0,43801.0,0.005]
[1704143901634,0.23321711,43803.0,43798.0,0.1]
[1704143901840,0.23321711,43803.0,43799.0,0.6660402]
[1704143901992,0.23421711,43803.0,43799.0,0.008]
[1704143902842,0.001,43802.0,43799.0,0.008]
[1704143903059,0.001,43802.0,43798.0,0.108]
[1704143903291,0.23321711,43803.0,43799.0,0.65804355]
[1704143903523,0.23521711,43803.0,43799.0,0.007]
[1704143903729,0.23421711,43803.0,43798.0,0.109]
[1704143903880,0.23421711,43803.0,43799.0,0.65803776]
[1704143904086,0.001,43802.0,43799.0,0.007]
[1704143904289,0.23421711,43803.0,43798.0,0.109]
[1704143904495,0.23421711,43803.0,43799.0,0.6650397]
[1704143904696,0.001,43802.0,43799.0,0.00654107]
[1704143906152,0.23421711,43803.0,43798.0,0.1]
[1704143906153,0.23321711,43803.0,43798.0,0.1]
[1704143906378,0.28884629,43803.0,43799.0,0.008]
[1704143906608,0.001,43802.0,43799.0,0.015]
[1704143907010,0.001,43802.0,43799.0,0.007]
[1704143907457,0.28884629,43803.0,43798.0,0.109]
[1704143907843,0.46355437,43803.0,43799.0,0.007]
[1704143908053,0.05462918,43802.0,43799.0,0.008]
[1704143908188,0.05562918,43802.0,43799.0,0.015]
[1704143908798,0.05462918,43801.0,43799.0,0.015]
[1704143909438,0.05462918,43801.0,43798.0,0.1]
[1704143909656,0.05462918,43801.0,43798.0,0.117]
[1704143909853,0.05462918,43801.0,43798.0,0.109]
[1704143910287,0.05562918,43801.0,43799.0,0.007]
[1704143910655,0.05562918,43801.0,43799.0,0.3499]
[1704143910830,0.05662918,43801.0,43799.0,0.3499]
[1704143911033,0.05562918,43801.0,43799.0,0.3499]
[1704143911236,0.05462918,43800.0,43799.0,0.3499]
[1704143911440,0.05462918,43800.0,43799.0,0.3579]
[1704143911722,0.05462918,43800.0,43799.0,0.008]
[1704143912661,0.05462918,43800.0,43799.0,0.015]
[1704143912797,0.05462918,43800.0,43799.0,0.008]
[1704143913020,0.05562918,43800.0,43799.0,0.015]
[1704143913228,0.08294377,43800.0,43799.0,0.007]
[1704143913420,0.08294377,43800.0,43799.0,0.015]
[1704143913626,0.08394377,43800.0,43799.0,0.015]
[1704143915341,0.05673728,43800.0,43799.0,0.015]
[1704143915546,0.08394377,43800.0,43799.0,0.015]
[1704143916915,0.05673513,43800.0,43799.0,0.015]
[1704143918130,0.002,43800.0,43799.0,0.015]
[1704143918563,0.05673513,43800.0,43799.0,0.015]
[1704143918763,0.002,43800.0,43799.0,0.015]
[1704143919088,0.05673513,43800.0,43799.0,0.015]
[1704143919526,0.002,43800.0,43799.0,0.015]
[1704143919725,0.002,43800.0,43799.0,0.67302126]
[1704143921143,0.002,43800.0,43799.0,0.015]
[1704143921144,0.05673513,43800.0,43799.0,0.015]
[1704143923440,0.05673513,43800.0,43799.0,0.67303491]
[1704143923656,0.05673513,43800.0,43799.0,0.015]
[1704143924032,0.0686789,43801.0,43799.0,0.67303377]
[1704143924241,0.88804748,43803.0,43799.0,0.67303377]
[1704143924242,0.52277548,43803.0,43799.0,0.015]
[1704143924448,0.88804748,43803.0,43799.0,0.015]
[1704143925090,0.88804748,43803.0,43799.0,0.007]
[1704143925541,0.001,43801.0,43799.0,0.008]
[1704143925946,0.001,43801.0,43799.0,0.007]
[1704143926282,0.001,43801.0,43800.0,0.65802532]
[1704143926547,0.88904748,43803.0,43800.0,0.65802532]
[1704143926747,0.88804748,43803.0,43798.0,0.4499]
[1704143926943,0.88804748,43803.0,43799.0,0.65803458]
[1704143927209,0.001,43801.0,43799.0,0.008]
[1704143927432,0.59950711,43801.0,43800.0,0.005]
[1704143928391,0.92848015,43801.0,43800.0,0.005]
[1704143928611,0.86842015,43801.0,43800.0,0.005]
[1704143928845,0.86842015,43801.0,43793.0,0.4499]
[1704143929065,0.63997661,43800.0,43799.0,0.007]
[1704143929238,0.82297661,43800.0,43799.0,0.007]
[1704143929508,0.63997661,43800.0,43799.0,0.007]
[1704143929718,0.50313015,43800.0,43794.0,0.1967]
[1704143929930,0.10947058,43798.0,43794.0,0.1967]
[1704143931675,0.10947058,43799.0,43794.0,0.1967]
[1704143931868,0.61261492,43799.0,43794.0,0.1967]
[1704143932075,0.16358324,43797.0,43794.0,0.2097]
[1704143932342,0.39680035,43797.0,43794.0,0.2097]
[1704143932571,0.39680035,43797.0,43794.0,0.009]
[1704143932779,0.39680035,43797.0,43794.0,0.017]
[1704143932780,0.465338,43795.0,43794.0,0.017]
[1704143933022,0.1,43793.0,43788.0,0.3499]
[1704143933235,0.365376,43791.0,43788.0,0.3499]
[1704143933458,0.13677187,43789.0,43788.0,0.3499]
[1704143933664,0.63993539,43789.0,43784.0,0.05]
[1704143933867,0.08206506,43786.0,43784.0,0.05]
[1704143934070,0.05470991,43785.0,43784.0,0.05]
[1704143934307,0.05470991,43786.0,43782.0,0.1]
[1704143934948,0.05470991,43786.0,43783.0,0.1]
[1704143935153,0.05470991,43787.0,43783.0,0.1]
[1704143936032,0.47392702,43788.0,43783.0,0.1]
[1704143936257,0.47392702,43788.0,43783.0,0.101]
[1704143936465,0.001,43787.0,43783.0,0.101]
[1704143936678,0.001,43787.0,43783.0,0.001]
[1704143937146,0.001,43787.0,43784.0,0.1]
[1704143938443,0.002,43787.0,43784.0,0.1]
[1704143938866,0.001,43787.0,43784.0,0.1]
[1704143939093,0.003,43787.0,43784.0,0.1]
[1704143939529,0.003,43787.0,43782.0,0.1952]
[1704143939530,0.003,43787.0,43786.0,0.1]
[1704143940193,0.003,43787.0,43786.0,0.123]
[1704143940411,0.003,43787.0,43786.0,0.539353]
[1704143940616,0.002,43787.0,43786.0,0.838313]
[1704143940905,0.003,43787.0,43786.0,1.029013]
[1704143941119,0.001,43787.0,43786.0,1.029013]
[1704143941305,0.42461158,43798.0,43786.0,1.022013]
[1704143941557,0.15927759,43795.0,43788.0,0.1]
[1704143941768,0.23321711,43794.0,43788.0,0.1]
[1704143942673,0.23321711,43794.0,43788.0,0.105]
[1704143942809,0.23321711,43794.0,43788.0,0.1]
[1704143943243,0.23421711,43794.0,43788.0,0.107]
[1704143943680,0.23421711,43794.0,43788.0,0.4569]
[1704143944387,0.23521711,43794.0,43788.0,0.4649]
[1704143944600,0.23521711,43794.0,43788.0,0.115]
[1704143945337,0.1,43792.0,43788.0,0.015]
[1704143945541,0.23321711,43791.0,43788.0,0.015]
[1704143946704,0.23321711,43791.0,43788.0,0.007]
[1704143946899,0.59858911,43791.0,43788.0,0.007]
[1704143947188,0.59858911,43791.0,43788.0,0.015]
[1704143947560,0.59858911,43791.0,43784.0,0.1]
[1704143947762,0.78258911,43791.0,43788.0,0.015]
[1704143948484,0.78158911,43791.0,43784.0,0.1]
[1704143949066,0.78058911,43791.0,43788.0,0.005]
[1704143949444,0.78058911,43791.0,43788.0,0.009]
[1704143949882,0.78158911,43791.0,43788.0,0.009]
[1704143950279,0.78058911,43791.0,43788.0,0.009]
[1704143950476,0.78058911,43791.0,43788.0,0.004]
[1704143950954,0.78158911,43791.0,43788.0,0.004]
[1704143951133,0.78058911,43791.0,43788.0,0.004]
[1704143951287,0.41521711,43791.0,43788.0,0.004]
[1704143951493,0.41521711,43791.0,43788.0,0.006]
[1704143952332,0.41521711,43791.0,43788.0,0.004]
[1704143952531,0.41521711,43791.0,43788.0,0.005]
[1704143952742,0.41521711,43791.0,43788.0,0.001]
[1704143952938,0.05462937,43794.0,43791.0,0.1]
[1704143953150,0.05462937,43795.0,43791.0,0.1]
[1704143953344,0.41996337,43796.0,43791.0,0.1]
[1704143953590,0.28784648,43796.0,43791.0,0.1]
[1704143954460,0.29784648,43796.0,43791.0,0.101]
[1704143954668,0.30884648,43796.0,43791.0,0.102]
[1704143954869,0.30884648,43796.0,43793.0,0.1]
[1704143954870,0.021,43796.0,43793.0,0.1]
[1704143955478,0.021,43796.0,43795.0,0.1]
[1704143955676,0.021,43796.0,43795.0,0.4499]
[1704143955854,0.011,43796.0,43795.0,0.4499]
[1704143956068,0.022,43796.0,43795.0,0.4499]
[1704143956757,0.05462937,43802.0,43797.0,0.1]
[1704143957041,0.23321711,43802.0,43797.0,0.1]
[1704143957881,0.28784648,43802.0,43797.0,0.1]
[1704143958083,0.23321711,43802.0,43797.0,0.1]
[1704143958680,0.23821711,43802.0,43797.0,0.1]
[1704143959083,0.24221711,43802.0,43797.0,0.1]
[1704143959847,0.24221711,43802.0,43798.0,0.3499]
[1704143960591,0.23821711,43802.0,43798.0,0.3499]
[1704143961007,0.41848926,43802.0,43798.0,0.3499]
[1704143961233,0.41848926,43802.0,43798.0,0.3509]
[1704143961234,0.42548926,43802.0,43798.0,0.3509]
[1704143961694,0.42548926,43802.0,43798.0,0.001]
[1704143962159,0.4304744,43802.0,43798.0,0.001]
[1704143965233,0.7957554,43802.0,43798.0,0.001]
[1704143966284,0.66511262,43802.0,43798.0,0.001]
[1704143971484,0.66511262,43802.0,43796.0,0.5446]
[1704143971485,0.05461451,43801.0,43796.0,0.1456]
[1704143971726,0.05461451,43801.0,43797.0,0.3499]
[1704143972457,0.001,43801.0,43798.0,0.023]
[1704143972654,0.001,43801.0,43798.0,0.388313]
[1704143972887,0.001,43801.0,43798.0,0.436613]
[1704143973099,0.49921881,43808.0,43798.0,0.388313]
[1704143973316,0.006,43801.0,43799.0,0.045]
[1704143973516,0.002,43801.0,43800.0,0.023]
[1704143973725,0.003,43801.0,43800.0,0.023]
[1704143974333,0.004,43801.0,43800.0,0.023]
[1704143975592,0.002,43801.0,43800.0,0.023]
[1704143975787,0.59313,43808.0,43800.0,0.023]
[1704143975995,0.001,43801.0,43799.0,0.023]
[1704143976203,0.002,43801.0,43800.0,0.008]
[1704143976403,0.002,43801.0,43800.0,0.031]
[1704143976404,0.001,43801.0,43800.0,0.031]
[1704143976775,0.002,43801.0,43800.0,0.04]
[1704143977377,0.001,43801.0,43800.0,0.032]
[1704143977732,0.002,43801.0,43800.0,0.032]
[1704143978166,0.002,43801.0,43800.0,0.009]
[1704143979023,0.001,43801.0,43800.0,0.009]
[1704143979244,0.002,43801.0,43800.0,0.017]
[1704143983543,0.002,43801.0,43800.0,0.04]
[1704143984140,0.1593,43805.0,43800.0,0.04]
[1704143984291,0.1593,43805.0,43801.0,0.023]
[1704143984901,0.365229,43809.0,43801.0,0.023]
[1704143985338,0.002,43805.0,43801.0,0.023]
[1704143985642,0.001,43805.0,43801.0,0.023]
[1704143986063,0.001,43805.0,43801.0,0.028]
[1704143986268,0.2073,43807.0,43801.0,0.023]
[1704143986493,0.2073,43807.0,43801.0,0.013]
[1704143987883,0.2073,43807.0,43801.0,0.007]
[1704143988087,0.2073,43807.0,43801.0,0.015]
[1704143988307,0.001,43805.0,43801.0,0.015]
[1704143988652,0.2073,43807.0,43798.0,0.023]
[1704143988779,0.2073,43807.0,43801.0,0.007]
[1704143988985,0.2083,43807.0,43801.0,0.015]
[1704143989186,0.2083,43807.0,43801.0,0.008]
[1704143989391,0.2073,43807.0,43801.0,0.007]
[1704143989612,0.2073,43807.0,43798.0,0.023]
[1704143990013,0.2073,43807.0,43801.0,0.007]
[1704143991028,0.2083,43807.0,43801.0,0.007]
[1704143991231,0.23321711,43806.0,43801.0,0.007]
[1704143991873,0.365259,43805.0,43798.0,0.012]
[1704143992089,0.365259,43805.0,43801.0,0.007]
[1704143992306,0.365259,43805.0,43798.0,0.012]
[1704143992307,0.1984,43804.0,43798.0,0.012]
[1704143992505,0.1984,43804.0,43797.0,0.1995]
[1704143992728,0.1984,43804.0,43801.0,0.007]
[1704143992955,0.1984,43804.0,43801.0,0.008]
[1704143993377,0.1984,43804.0,43801.0,0.015]
[1704143993625,0.1984,43804.0,43797.0,0.1995]
[1704143993835,0.1994,43804.0,43797.0,0.2135]
[1704143994880,0.1994,43804.0,43801.0,0.007]
[1704143995696,0.1984,43804.0,43797.0,0.1995]
[1704143995900,0.1994,43804.0,43801.0,0.008]
[1704143996032,0.2004,43804.0,43801.0,0.008]
[1704143996396,0.1994,43804.0,43801.0,0.008]
[1704143996623,0.1984,43804.0,43801.0,0.007]
[1704143997083,0.1994,43804.0,43801.0,0.007]
[1704143998166,0.1984,43804.0,43801.0,0.007]
[1704143998375,0.1994,43804.0,43801.0,0.015]
[1704144000555,0.25401451,43804.0,43801.0,0.015]
[1704144002537,0.05461451,43803.0,43801.0,0.015]
[1704144002943,0.1994,43804.0,43801.0,0.015]
[1704144002944,0.25401451,43804.0,43801.0,0.015]
[1704144004315,0.25401451,43804.0,43801.0,0.008]
[1704144004610,0.25301451,43804.0,43797.0,0.1995]
[1704144004812,0.25301451,43804.0,43801.0,0.007]
[1704144005038,0.001,43803.0,43801.0,0.015]
[1704144005418,0.25301451,43804.0,43797.0,0.1995]
[1704144005870,0.25301451,43804.0,43801.0,0.007]
[1704144006087,0.05461451,43805.0,43799.0,0.365301]
[1704144006298,0.001,43804.0,43801.0,0.005]
[1704144007168,0.001,43804.0,43803.0,0.965271]
[1704144007370,0.001,43804.0,43803.0,1.19848811]
[1704144007582,0.21668641,43814.0,43805.0,0.1]
[1704144007796,0.05461451,43815.0,43806.0,0.38824]
[1704144008016,0.05461451,43815.0,43807.0,0.365237]
[1704144008230,0.41674497,43816.0,43808.0,0.123]
[1704144008450,0.19804497,43816.0,43808.0,0.488229]
[1704144008656,0.001,43814.0,43808.0,0.535569]
[1704144009287,0.001,43815.0,43808.0,0.535569]
[1704144009489,0.14343046,43816.0,43808.0,0.547569]
[1704144009697,0.19904497,43816.0,43808.0,0.547569]
[1704144009898,0.14443046,43816.0,43808.0,0.500229]
[1704144010126,0.001,43816.0,43808.0,0.500229]
[1704144010345,0.001,43816.0,43808.0,0.544329]
[1704144010577,0.001,43816.0,43809.0,0.04746]
[1704144010781,0.001,43816.0,43810.0,0.023]
[1704144010992,0.001,43814.0,43810.0,0.023]